bitfinex/quotes_ETHUSD_20251010
["timestamp","ask_amount","ask_price","bid_price","bid_amount"]
[1760074410230,0.002,4352.1,4352.0,2.80394965]
[1760074410418,0.002,4352.1,4352.0,3.24684965]
[1760074410419,2.393,4352.1,4352.0,3.24684965]
[1760074410625,2.465,4352.1,4352.0,3.24684965]
[1760074412345,0.002,4352.1,4352.0,3.24684965]
[1760074412545,2.43,4352.1,4352.0,3.24684965]
[1760074413106,2.43,4352.1,4352.0,3.36124965]
[1760074413342,0.002,4352.1,4352.0,3.36124965]
[1760074413507,2.507,4352.1,4352.0,3.36124965]
[1760074413849,0.002,4352.1,4352.0,3.36124965]
[1760074414212,0.002,4352.4,4352.0,3.99484965]
[1760074414213,0.107,4352.2,4352.0,3.99484965]
[1760074414439,0.002,4352.4,4352.3,2.29763573]
[1760074414639,0.168,4352.4,4352.3,2.41203573]
[1760074414940,0.168,4352.4,4352.3,2.85493573]
[1760074415720,0.168,4352.4,4352.3,2.29763573]
[1760074421153,0.168,4352.4,4352.3,2.74053573]
[1760074421354,0.002,4352.4,4352.3,3.26414871]
[1760074421671,0.122,4352.4,4352.3,3.26414871]
[1760074421822,0.002,4352.4,4352.3,3.26414871]
[1760074422020,0.025,4352.4,4352.3,3.28712506]
[1760074422819,0.002,4352.4,4352.3,3.28712506]
[1760074423152,0.023,4352.4,4352.3,3.28712506]
[1760074423358,0.012,4352.9,4352.3,3.28712506]
[1760074423359,0.012,4352.9,4352.3,1.62308933]
[1760074423563,0.012,4352.9,4352.8,2.2973718]
[1760074423718,2.42,4352.9,4352.8,2.2973718]
[1760074423918,2.42,4352.9,4352.8,2.7402718]
[1760074425851,2.42,4352.9,4352.8,2.2973718]
[1760074428282,4.888,4352.9,4352.8,2.7337718]
[1760074428768,4.888,4352.9,4352.8,2.2973718]
[1760074428936,4.888,4352.9,4352.4,2.73396585]
[1760074429123,4.888,4352.9,4352.3,2.29759893]
[1760074429324,4.888,4352.9,4352.6,2.29743196]
[1760074429638,4.888,4352.9,4352.7,2.29742186]
[1760074430446,4.888,4352.9,4352.0,2.29779411]
[1760074430841,4.888,4352.9,4352.7,2.29738241]
[1760074431049,4.888,4352.9,4352.0,2.29779411]
[1760074431256,4.888,4352.9,4352.0,2.76321352]
[1760074431458,0.012,4352.9,4352.8,2.2973718]
[1760074431635,8.891,4352.9,4352.8,2.7337718]
[1760074432330,8.891,4352.9,4352.8,2.2973718]
[1760074432530,9.3615,4352.9,4352.8,2.2973718]
[1760074432772,8.891,4352.9,4352.8,2.2973718]
[1760074437439,8.891,4352.9,4352.2,2.29768852]
[1760074437648,0.1144,4352.8,4352.5,2.29751985]
[1760074437970,0.5495,4352.8,4352.5,2.29751985]
[1760074438672,0.1144,4352.5,4351.7,0.1144]
[1760074438838,0.4351,4352.7,4351.3,0.4394]
[1760074438839,0.1144,4352.0,4351.9,2.29784691]
[1760074439041,2.5044,4352.0,4351.3,0.1144]
[1760074439261,6.216,4351.9,4351.5,2.29803153]
[1760074439580,6.216,4351.9,4351.3,0.1144]
[1760074440140,6.216,4351.9,4351.8,2.29789971]
[1760074440382,6.216,4351.9,4351.4,2.29811095]
[1760074440585,0.1144,4351.8,4351.6,2.29797498]
[1760074440783,0.4351,4351.7,4351.1,0.1154]
[1760074440939,0.1144,4351.3,4351.1,0.001]
[1760074441137,8.879,4351.2,4351.1,0.001]
[1760074441578,9.3141,4351.2,4351.1,0.001]
[1760074443283,0.4351,4352.0,4351.2,2.29821658]
[1760074443612,0.1144,4351.2,4351.1,2.2992694]
[1760074443806,0.5004,4351.2,4351.1,3.24247168]
[1760074444173,0.5004,4351.2,4351.1,0.001]
[1760074444372,0.5004,4351.2,4351.1,2.2992694]
[1760074447718,0.5004,4351.2,4351.1,0.001]
[1760074447868,0.5004,4351.2,4351.1,2.2992694]
[1760074448071,0.5004,4351.2,4351.1,0.001]
[1760074448772,0.5004,4351.2,4351.1,2.2992694]
[1760074449175,0.1144,4351.2,4351.1,2.2992694]
[1760074449376,9.565,4351.9,4351.6,2.29798756]
[1760074449603,0.1144,4351.6,4351.5,2.29805814]
[1760074449816,0.1144,4351.6,4351.4,2.29806082]
[1760074450115,0.1144,4351.6,4351.2,2.29817556]
[1760074450322,8.881,4351.5,4351.4,2.29806782]
[1760074450522,8.881,4351.5,4351.1,0.001]
[1760074451155,0.1144,4351.2,4351.1,0.001]
[1760074451651,0.5495,4351.2,4351.1,0.001]
[1760074454878,0.1144,4351.2,4351.1,2.2992694]
[1760074455800,0.1144,4351.2,4351.1,3.25383229]
[1760074456001,0.1144,4351.5,4351.1,10.35736723]
[1760074456224,9.566,4352.3,4351.5,2.29805814]
[1760074456428,8.9984,4352.2,4352.1,2.29774132]
[1760074456674,9.4335,4352.2,4351.6,0.1144]
[1760074456827,9.4335,4352.2,4351.6,2.29799668]
[1760074456828,9.3191,4352.2,4351.6,2.29799668]
[1760074457024,0.1144,4351.9,4351.1,0.5548]
[1760074457269,0.1144,4351.9,4351.8,2.29789971]
[1760074457434,9.0004,4351.9,4351.8,2.29789971]
[1760074457757,9.4355,4351.9,4351.5,2.29804575]
[1760074457961,9.0004,4351.9,4351.5,2.29804575]
[1760074458165,0.6533,4351.8,4351.1,0.001]
[1760074458328,0.1144,4351.4,4351.1,0.001]
[1760074458533,6.497,4351.3,4351.1,0.001]
[1760074458728,6.497,4351.2,4351.1,0.001]
[1760074459129,6.9321,4351.2,4351.1,0.001]
[1760074461039,0.4351,4351.2,4351.1,0.001]
[1760074461240,11.957,4351.2,4351.1,0.001]
[1760074461464,18.454,4351.2,4351.1,0.001]
[1760074462564,18.8891,4351.2,4351.1,0.001]
[1760074463430,0.4351,4351.6,4351.1,0.001]
[1760074463636,12.535,4351.5,4351.1,0.001]
[1760074463867,12.535,4351.5,4351.1,2.2992643]
[1760074464070,2.29754375,4352.5,4351.5,2.29800607]
[1760074464238,2.29754375,4352.5,4351.3,2.29816376]
[1760074464239,9.567,4352.1,4351.6,2.29799608]
[1760074464438,4.978,4352.0,4351.6,2.29799608]
[1760074464634,0.1144,4351.7,4351.4,2.29808997]
[1760074464965,0.1144,4351.7,4351.6,2.29800533]
[1760074466376,0.1144,4351.7,4351.1,0.001]
[1760074466688,0.5495,4351.7,4351.1,0.001]
[1760074467479,0.5495,4351.7,4351.2,2.29821658]
[1760074467781,0.4632,4351.6,4351.2,2.29821658]
[1760074467988,6.497,4351.5,4351.2,2.29821658]
[1760074468284,6.497,4351.5,4351.3,2.29815287]
[1760074471260,0.4632,4351.4,4351.1,0.001]
[1760074471656,0.5776,4351.3,4351.1,0.001]
[1760074472057,0.4632,4351.2,4351.1,0.001]
[1760074472267,0.1144,4351.3,4351.1,0.001]
[1760074472591,0.4632,4351.2,4351.1,0.001]
[1760074474092,0.1144,4351.3,4351.1,0.001]
[1760074474257,0.4632,4351.2,4351.1,0.001]
[1760074474860,9.3492,4351.2,4351.1,0.001]
[1760074475897,0.82283787,4352.5,4351.1,0.001]
[1760074476083,1.92,4353.2,4351.1,0.001]
[1760074476084,0.4632,4351.7,4351.1,0.001]
[1760074476391,1.208,4351.6,4351.1,2.29925644]
[1760074476604,0.4632,4351.5,4351.1,2.29925644]
[1760074476958,0.4632,4351.4,4351.1,2.29925644]
[1760074477162,2.391,4351.3,4351.1,2.29925644]
[1760074477357,6.494,4351.2,4351.1,2.29925644]
[1760074480561,6.494,4351.2,4351.1,0.001]
[1760074481460,6.9572,4351.2,4351.1,0.001]
[1760074482397,9.25541658,4351.2,4351.1,0.001]
[1760074482612,9.7510736,4351.2,4351.1,0.001]
[1760074483517,10.3846736,4351.2,4351.1,0.001]
[1760074483825,11.00156133,4351.2,4351.1,0.001]
[1760074484185,10.3846736,4351.2,4351.1,0.001]
[1760074484884,11.00156133,4351.2,4351.1,0.001]
[1760074485298,10.3846736,4351.2,4351.1,0.001]
[1760074486088,11.00376327,4351.2,4351.1,0.001]
[1760074486815,10.3846736,4351.2,4351.1,0.001]
[1760074487221,11.00376327,4351.2,4351.1,0.001]
[1760074488019,10.3846736,4351.2,4351.1,0.001]
[1760074488202,11.00376327,4351.2,4351.1,0.001]
[1760074488592,10.3846736,4351.2,4351.1,0.001]
[1760074488794,11.00376327,4351.2,4351.1,0.001]
[1760074489223,2.21154669,4351.2,4351.1,0.001]
[1760074489426,18.9162,4351.2,4351.1,0.001]
[1760074489725,19.41185702,4351.2,4351.1,0.001]
[1760074490299,21.7100736,4351.2,4351.1,0.001]
[1760074491090,0.95885702,4351.2,4351.1,0.001]
[1760074491314,17.0812,4351.2,4351.1,0.001]
[1760074491624,17.57685702,4351.2,4351.1,0.001]
[1760074492464,19.8750736,4351.2,4351.1,0.001]
[1760074492817,17.57685702,4351.2,4351.1,0.001]
[1760074494233,19.8750736,4351.2,4351.1,0.001]
[1760074494795,3.2570736,4351.2,4351.1,0.001]
[1760074495020,21.21541658,4351.2,4351.1,0.001]
[1760074495225,19.41285702,4351.2,4351.1,0.001]
[1760074497224,0.95885702,4351.2,4351.1,0.001]
[1760074497419,19.41285702,4351.2,4351.1,0.001]
[1760074497626,18.9172,4351.2,4351.1,0.001]
[1760074498617,21.21541658,4351.2,4351.1,0.001]
[1760074498817,2.76141658,4351.2,4351.1,0.001]
[1760074499024,21.21441658,4351.2,4351.1,0.001]
[1760074500148,21.70946244,4351.2,4351.1,0.001]
[1760074500458,19.41124586,4351.2,4351.1,0.001]
[1760074500829,21.70946244,4351.2,4351.1,0.001]
[1760074501214,6.492,4351.2,4351.1,0.001]
[1760074501415,8.884,4351.2,4351.1,0.001]
[1760074501645,9.3433,4351.2,4351.1,0.001]
[1760074501857,12.13663112,4351.2,4351.1,0.001]
[1760074502211,9.83841454,4351.2,4351.1,0.001]
[1760074502622,12.13663112,4351.2,4351.1,0.001]
[1760074506665,9.83841454,4351.2,4351.1,0.001]
[1760074506834,12.13663112,4351.2,4351.1,0.001]
[1760074511467,0.49511454,4351.2,4351.1,0.001]
[1760074511640,18.9103,4351.2,4351.1,0.001]
[1760074511840,0.95441454,4351.2,4351.1,0.001]
[1760074512145,18.451,4351.2,4351.1,0.001]
[1760074512337,18.94611454,4351.2,4351.1,0.001]
[1760074512872,6.49,4351.2,4351.1,2.98171122]
[1760074513070,6.49,4351.2,4351.1,3.00469391]
[1760074513256,6.49,4351.2,4351.1,2.52931122]
[1760074513977,6.49,4351.2,4351.1,2.98171122]
[1760074514832,6.49,4351.2,4351.1,0.68344182]
[1760074514833,8.886,4351.2,4351.1,0.68344182]
[1760074515055,8.886,4351.2,4351.1,2.98171122]
[1760074516180,8.886,4351.2,4351.1,2.52931122]
[1760074516357,0.4593,4352.0,4351.4,2.29806669]
[1760074516674,0.4593,4352.5,4351.5,0.25278725]
[1760074516876,14.314,4352.4,4351.8,2.29789757]
[1760074517198,0.49508172,4352.3,4351.1,0.4534]
[1760074517368,0.4593,4352.5,4351.7,2.29794372]
[1760074517554,0.4593,4352.5,4351.8,0.02297899]
[1760074517759,0.4593,4352.5,4352.0,2.29774551]
[1760074517760,14.554,4352.4,4352.0,2.29774551]
[1760074518178,15.0133,4352.4,4351.4,0.4524]
[1760074518380,15.0133,4352.4,4351.8,2.29785223]
[1760074518581,15.0133,4352.4,4351.8,2.75744327]
[1760074519677,0.4593,4352.3,4351.8,0.45959104]
[1760074519866,0.4593,4352.2,4351.8,2.2978759]
[1760074520067,6.492,4352.1,4351.9,2.29779644]
[1760074520682,6.492,4352.0,4351.7,2.29790049]
[1760074520893,8.883,4352.0,4351.7,2.29790049]
[1760074521117,8.883,4352.0,4350.8,0.001]
[1760074521277,0.6785,4351.9,4350.8,0.001]
[1760074521605,0.6785,4351.9,4351.1,2.29925329]
[1760074521760,0.6785,4351.9,4351.2,0.22992533]
[1760074521963,0.4593,4351.9,4351.6,2.29799971]
[1760074522504,0.4593,4351.8,4351.2,0.22992533]
[1760074522708,6.491,4351.7,4351.4,2.29810935]
[1760074523011,6.6054,4351.7,4351.2,0.22992533]
[1760074523197,7.0647,4351.7,4351.4,2.29809873]
[1760074523509,7.0647,4351.7,4351.5,2.2980543]
[1760074524014,6.6054,4351.7,4351.5,2.29804178]
[1760074524702,7.0647,4351.7,4351.5,2.29804178]
[1760074525511,7.0647,4351.7,4351.1,0.001]
[1760074525712,0.4593,4351.6,4351.1,0.001]
[1760074525918,0.1144,4351.3,4351.1,0.001]
[1760074526220,8.881,4351.2,4351.1,2.2992694]
[1760074526421,8.881,4351.2,4351.1,0.001]
[1760074526709,9.3403,4351.2,4351.1,0.001]
[1760074527478,9.3403,4351.2,4351.1,2.2992694]
[1760074527479,8.881,4351.2,4351.1,2.2992694]
[1760074527715,8.881,4351.2,4351.1,2.32225209]
[1760074528014,8.881,4351.2,4351.1,2.78440831]
[1760074528512,9.567,4352.1,4351.2,2.29821658]
[1760074528713,0.1144,4351.8,4351.7,2.29795252]
[1760074531416,0.1144,4351.8,4351.6,2.2979988]
[1760074531716,6.49,4351.7,4351.6,2.2979988]
[1760074532618,0.1144,4351.8,4351.7,2.29795252]
[1760074532816,2.5424,4351.8,4351.7,2.29795252]
[1760074532985,4.9334,4351.8,4351.7,2.29795252]
[1760074533185,4.9334,4351.8,4351.1,6.39908319]
[1760074533384,4.9334,4351.8,4351.2,0.68287832]
[1760074534018,4.9334,4351.8,4351.6,2.29795593]
[1760074534200,4.9334,4351.8,4351.7,2.29795252]
[1760074535104,4.9334,4351.8,4351.7,2.32093204]
[1760074535415,4.9334,4351.8,4351.7,2.75063204]
[1760074535586,4.9334,4351.8,4351.7,3.25549886]
[1760074535983,4.9334,4351.8,4351.7,2.80281934]
[1760074536182,4.9334,4351.8,4351.7,2.29795252]
[1760074536417,4.9334,4351.8,4351.5,2.29801332]
[1760074536615,0.4698,4351.7,4351.4,2.29810076]
[1760074536913,4.9334,4351.8,4351.4,2.29810076]
[1760074537139,5.4032,4351.8,4351.4,2.29810076]
[1760074537909,5.4032,4351.8,4351.5,2.29805672]
[1760074538311,5.4032,4351.8,4351.4,2.29810815]
[1760074540841,5.4032,4351.8,4351.5,2.29804385]
[1760074541545,4.9334,4351.8,4351.7,2.29795252]
[1760074542248,4.9334,4351.8,4351.6,2.29799759]
[1760074543215,4.9334,4351.8,4351.4,2.29811095]
[1760074543418,4.9334,4351.8,4351.5,2.32103872]
[1760074543760,4.9334,4351.8,4351.7,2.29795252]
[1760074545111,4.9334,4351.8,4351.6,2.29799772]
[1760074545548,8.879,4351.7,4351.5,0.02298058]
[1760074545746,0.1144,4351.8,4351.6,2.29795826]
[1760074545952,8.879,4351.7,4351.6,2.29795826]
[1760074547151,8.879,4351.7,4351.6,2.29800533]
[1760074550258,0.1144,4351.8,4351.7,2.29795252]
[1760074550458,8.9934,4351.8,4351.7,2.29795252]
[1760074550653,9.4645,4351.8,4351.2,2.29821658]
[1760074550847,9.4645,4351.8,4351.3,2.29814426]
[1760074551041,0.4711,4351.7,4351.1,0.1154]
[1760074551348,0.4711,4351.7,4351.3,2.29816376]
[1760074551859,0.4711,4351.7,4351.1,0.85756273]
[1760074551860,8.879,4351.8,4351.1,0.001]
[1760074552022,0.4711,4351.6,4351.1,0.001]
[1760074552571,2.76911438,4351.6,4351.1,0.001]
[1760074552796,2.29810716,4351.5,4351.1,0.001]
[1760074553095,6.488,4351.4,4351.1,0.001]
[1760074553293,9.25721784,4351.4,4351.1,0.001]
[1760074553443,0.49605228,4351.3,4351.1,0.001]
[1760074553864,0.4711,4351.2,4351.1,0.001]
[1760074554469,18.9161,4351.2,4351.1,0.001]
[1760074558375,0.217,4351.9,4351.2,2.29821658]
[1760074558564,9.567,4351.7,4351.1,0.001]
[1760074558765,0.49551897,4351.6,4351.2,2.29821545]
[1760074558965,6.489,4351.5,4351.1,2.29926801]
[1760074559161,6.489,4351.5,4351.2,2.29821246]
[1760074559475,6.9525,4351.5,4351.1,2.2992627]
[1760074559845,6.489,4351.5,4351.1,2.2992627]
[1760074560041,0.4635,4351.4,4351.1,0.001]
[1760074560248,0.95901282,4351.4,4351.1,0.001]
[1760074560690,6.489,4351.5,4351.1,0.001]
[1760074560691,0.4635,4351.3,4351.1,0.001]
[1760074560976,6.489,4351.2,4351.1,2.2992694]
[1760074561168,6.489,4351.2,4351.1,0.001]
[1760074563197,6.489,4351.2,4351.1,2.96699871]
[1760074563198,8.88,4351.2,4351.1,2.96699871]
[1760074563377,8.88,4351.2,4351.1,2.53159871]
[1760074564050,8.88,4351.2,4351.1,0.23332931]
[1760074564377,9.3435,4351.2,4351.1,0.001]
[1760074565984,11.64171658,4351.2,4351.1,0.001]
[1760074566408,16.58724386,4351.2,4351.1,0.001]
[1760074566599,22.66179285,4351.2,4351.1,0.001]
[1760074566750,24.58179285,4351.2,4351.1,0.001]
[1760074566954,24.58179285,4351.2,4350.8,0.001]
[1760074566955,2.93197504,4350.9,4350.8,0.001]
[1760074567300,16.78192403,4350.9,4350.8,0.001]
[1760074567466,17.24542403,4350.9,4350.8,0.001]
[1760074568291,18.06986226,4350.9,4350.8,0.001]
[1760074569117,18.52244086,4350.9,4350.8,0.001]
[1760074569415,17.69800263,4350.9,4350.8,0.001]
[1760074570476,6.26347535,4350.9,4350.8,0.001]
[1760074570682,24.71247535,4350.9,4350.8,0.001]
[1760074571814,29.65800263,4350.9,4350.8,0.001]
[1760074573319,29.75009712,4350.9,4350.8,0.001]
[1760074573686,11.30109712,4350.9,4350.8,0.001]
[1760074573888,29.75209712,4350.9,4350.8,0.001]
[1760074574118,27.83209712,4350.9,4350.8,0.001]
[1760074579657,1.0510162,4350.9,4350.8,0.001]
[1760074579820,0.09209449,4350.9,4350.8,0.001]
[1760074580020,2.95509449,4350.9,4350.8,0.001]
[1760074580223,2.48409449,4350.9,4350.8,3.46172496]
[1760074580549,0.1144,4351.0,4350.9,2.29837504]
[1760074580754,8.9974,4351.0,4350.9,7.70228607]
[1760074580966,0.4635,4352.5,4350.9,7.67930232]
[1760074581159,0.1144,4351.9,4351.6,2.29800431]
[1760074581365,1.1145,4351.8,4350.8,0.72789709]
[1760074581509,0.1144,4351.1,4350.8,0.001]
[1760074581707,7.388,4351.0,4350.8,0.001]
[1760074581906,7.8515,4351.0,4350.8,0.001]
[1760074582545,7.8515,4351.0,4350.8,2.29942326]
[1760074582779,0.4635,4350.9,4350.8,0.001]
[1760074586776,2.76187504,4350.9,4350.8,0.001]
[1760074587282,3.25596728,4350.9,4350.8,0.001]
[1760074587638,3.88956728,4350.9,4350.8,0.001]
[1760074589173,4.35777264,4350.9,4350.8,0.001]
[1760074590637,3.25596728,4350.9,4350.8,0.001]
[1760074590837,21.21287504,4350.9,4350.8,0.001]
[1760074591038,21.70696728,4350.9,4350.8,0.001]
[1760074591238,19.40859224,4350.9,4350.8,0.001]
[1760074591660,21.70696728,4350.9,4350.8,0.001]
[1760074592855,3.25596728,4350.9,4350.8,0.001]
[1760074593038,21.70696728,4350.9,4350.8,0.001]
[1760074604703,22.16018934,4350.9,4350.8,0.001]
[1760074605489,22.16118934,4350.9,4350.8,0.001]
[1760074606483,21.70796728,4350.9,4350.8,0.001]
[1760074606688,0.95759224,4350.9,4350.8,0.001]
[1760074606864,0.4635,4350.9,4350.8,0.001]
[1760074607067,18.7175,4350.9,4350.8,0.001]
[1760074607896,0.002,4351.1,4350.8,0.001]
[1760074608194,2.392,4350.9,4350.8,2.29942787]
[1760074608371,0.002,4351.1,4351.0,2.29832222]
[1760074608564,2.966,4351.1,4351.0,2.29832222]
[1760074609557,0.1144,4351.0,4350.8,0.50717344]
[1760074609762,6.49,4350.9,4350.8,0.001]
[1760074610189,6.49,4350.9,4350.8,2.29941328]
[1760074610698,0.1144,4351.0,4350.9,2.29837504]
[1760074610893,8.9964,4351.0,4350.9,2.32135879]
[1760074611194,8.9964,4351.0,4350.9,2.76115879]
[1760074611396,0.002,4351.1,4351.0,2.29832222]
[1760074611562,8.884,4351.1,4351.0,2.73812222]
[1760074617901,0.002,4351.1,4351.0,2.73812222]
[1760074618101,8.883,4351.1,4351.0,2.85252222]
[1760074618306,8.883,4351.1,4351.0,4.00313177]
[1760074620604,8.883,4351.1,4350.9,2.29832516]
[1760074620778,8.883,4351.1,4350.8,0.001]
[1760074621506,8.9974,4351.1,4350.8,0.001]
[1760074622299,8.9974,4351.1,4351.0,2.29832222]
[1760074622606,8.9974,4351.1,4351.0,2.75442222]
[1760074622788,2.393,4351.1,4351.0,3.26210311]
[1760074622988,8.881,4351.1,4351.0,3.37650311]
[1760074624565,0.002,4351.1,4351.0,3.39948633]
[1760074624770,0.007,4351.1,4351.0,3.39948633]
[1760074624979,0.007,4351.1,4351.0,3.37650311]
[1760074625180,0.007,4351.1,4351.0,2.92040311]
[1760074625786,0.007,4351.1,4350.8,0.001]
[1760074626000,0.007,4351.1,4350.9,2.29832827]
[1760074626183,0.007,4351.1,4350.8,0.001]
[1760074626385,0.007,4351.1,4351.0,2.29832222]
[1760074628673,0.007,4351.1,4350.8,0.001]
[1760074629199,0.4416,4351.0,4350.8,0.001]
[1760074629578,0.007,4351.1,4350.9,2.29837504]
[1760074630080,0.007,4351.1,4350.8,2.29942765]
[1760074630413,0.4416,4351.0,4350.8,2.29942765]
[1760074631012,0.007,4351.1,4350.9,2.29837504]
[1760074632291,0.007,4351.1,4350.9,0.45989001]
[1760074632492,0.007,4351.1,4350.8,0.02398427]
[1760074632792,0.002,4351.1,4351.0,2.29832222]
[1760074632997,2.393,4351.1,4351.0,2.77740544]
[1760074633204,3.032,4351.1,4351.0,2.75442222]
[1760074633581,4.182,4351.1,4351.0,3.85374829]
[1760074633779,6.573,4351.1,4351.0,3.85374829]
[1760074634715,6.573,4351.1,4350.8,0.001]
[1760074635011,6.573,4351.1,4351.0,2.29832222]
[1760074637296,6.573,4351.1,4351.0,2.75442222]
[1760074638115,6.573,4351.1,4351.0,2.29832222]
[1760074638895,0.002,4351.1,4351.0,2.29832222]
[1760074639096,0.002,4351.1,4351.0,2.75809473]
[1760074639097,8.453,4351.1,4351.0,2.75809473]
[1760074639296,8.453,4351.1,4350.9,2.29837001]
[1760074639630,8.453,4351.1,4351.0,2.29832222]
[1760074643211,8.881,4351.1,4351.0,2.29832222]
[1760074643412,8.881,4351.1,4351.0,2.75442222]
[1760074644937,8.881,4351.1,4351.0,2.29832222]
[1760074645136,8.881,4351.1,4350.8,0.001]
[1760074645314,8.881,4351.1,4350.8,2.29942251]
[1760074645836,0.4416,4351.0,4350.9,2.2983667]
[1760074646046,8.881,4351.1,4350.8,0.001]
[1760074646348,0.4962042,4351.0,4350.8,0.001]
[1760074646526,8.881,4351.1,4350.8,0.001]
[1760074646928,0.4416,4351.0,4350.8,0.001]
[1760074647938,8.879,4350.9,4350.8,0.001]
[1760074648149,6.488,4350.9,4350.8,0.001]
[1760074648442,8.879,4350.9,4350.8,0.001]
[1760074649323,0.4416,4351.0,4350.8,0.001]
[1760074649527,8.879,4350.9,4350.8,0.001]
[1760074652744,0.002,4351.1,4350.9,2.29832732]
[1760074652910,0.002,4351.1,4350.8,2.32241214]
[1760074653244,8.88,4351.0,4350.9,2.32135879]
[1760074653422,8.88,4351.0,4350.9,2.74915879]
[1760074654744,8.88,4351.0,4350.9,2.72617504]
[1760074654948,8.88,4351.0,4350.9,2.29837504]
[1760074657250,8.88,4351.0,4350.9,2.72617504]
[1760074658844,8.88,4351.0,4350.9,2.29837504]
[1760074659541,8.88,4351.0,4350.8,0.001]
[1760074660131,8.88,4351.0,4350.8,2.29938378]
[1760074660543,8.88,4351.0,4350.9,2.29837504]
[1760074660741,9.3397,4351.0,4350.8,0.001]
[1760074661365,0.4597,4350.9,4350.8,0.001]
[1760074661731,0.95564252,4350.9,4350.8,0.001]
[1760074661932,3.25401756,4350.9,4350.8,0.001]
[1760074664380,3.34610548,4350.9,4350.8,0.001]
[1760074665437,8.29617831,4350.9,4350.8,0.001]
[1760074665634,1.04773044,4350.9,4350.8,0.001]
[1760074665981,0.09208792,4350.9,4350.8,0.001]
[1760074666484,4.3696,4350.9,4350.8,0.001]
[1760074667386,3.896,4350.9,4350.8,0.001]
[1760074667741,0.002,4351.1,4350.8,0.001]
[1760074668067,0.002,4351.1,4351.0,2.29832222]
[1760074668273,0.002,4351.1,4350.8,0.001]
[1760074668274,3.576,4351.1,4350.9,2.29836863]
[1760074669682,3.576,4351.1,4350.8,0.001]
[1760074669834,0.4736,4351.0,4350.8,0.001]
[1760074670348,0.4736,4350.9,4350.8,0.001]
[1760074671130,3.576,4351.1,4350.8,0.001]
[1760074671565,4.0496,4351.1,4350.8,0.001]
[1760074671978,4.0496,4351.1,4350.8,0.70304799]
[1760074671979,0.002,4351.1,4350.8,0.70304799]
[1760074672135,8.881,4351.0,4350.9,2.29832632]
[1760074672335,2.5064,4351.0,4350.8,0.25403226]
[1760074672562,6.489,4350.9,4350.8,3.02446013]
[1760074672781,6.489,4350.9,4350.8,2.52947586]
[1760074675371,0.002,4351.1,4351.0,2.29832222]
[1760074675534,0.002,4351.1,4351.0,2.83060051]
[1760074675733,0.002,4351.1,4351.0,3.30260051]
[1760074675734,8.882,4351.1,4351.0,3.30260051]
[1760074676936,8.882,4351.1,4351.0,3.26800051]
[1760074677548,8.882,4351.1,4351.0,2.83060051]
[1760074683450,8.882,4351.1,4351.0,3.26800051]
[1760074686105,6.49,4351.1,4351.0,3.26800051]
[1760074686272,8.881,4351.1,4351.0,3.29098373]
[1760074687370,2.393,4351.1,4351.0,3.29098373]
[1760074687590,8.881,4351.1,4351.0,3.29098373]
[1760074688269,0.002,4351.1,4351.0,8.24105656]
[1760074688459,0.002,4351.1,4351.0,10.25247334]
[1760074688663,0.103,4351.1,4351.0,10.25247334]
[1760074689373,0.002,4351.1,4351.0,10.25247334]
[1760074689573,2.175,4351.1,4351.0,10.36659414]
[1760074691817,2.175,4351.1,4351.0,10.25247334]
[1760074692808,2.175,4351.1,4351.0,5.30240051]
[1760074696099,2.175,4351.1,4351.0,4.86500051]
[1760074696299,2.175,4351.1,4351.0,4.33272222]
[1760074697574,2.175,4351.1,4351.0,2.29832222]
[1760074698783,2.737,4351.1,4351.0,2.29832222]
[1760074700096,2.2894,4351.1,4351.0,2.29832222]
[1760074700707,0.002,4351.1,4351.0,7.68579505]
[1760074700869,6.826,4351.1,4351.0,8.68661512]
[1760074701979,5.7,4351.1,4351.0,8.68661512]
[1760074702170,4.701,4351.1,4351.0,10.72101512]
[1760074706405,0.002,4353.0,4351.5,2.29805814]
[1760074706610,2.391,4352.4,4351.9,2.41224691]
[1760074706819,0.01,4352.3,4351.9,2.43522537]
[1760074707027,0.01,4352.3,4351.9,2.90322537]
[1760074707322,0.01,4352.3,4351.9,6.03035044]
[1760074707491,0.01,4352.3,4351.9,6.00737198]
[1760074708922,0.01,4352.3,4351.9,10.95744481]
[1760074711915,0.01,4352.3,4351.9,5.53937198]
[1760074712115,0.01,4352.3,4351.9,2.41224691]
[1760074712302,0.01,4352.3,4351.9,2.29784691]
[1760074712630,0.01,4352.3,4351.4,2.76607739]
[1760074712631,0.01,4352.3,4351.2,0.468]
[1760074712830,0.01,4352.3,4351.8,2.29788078]
[1760074712831,0.1164,4352.0,4351.8,2.29788078]
[1760074713127,0.4573,4351.9,4351.8,2.29788078]
[1760074713511,0.1164,4352.0,4351.9,2.29784691]
[1760074714503,0.1164,4352.0,4351.8,2.2978961]
[1760074715097,0.4573,4351.9,4351.2,2.0344]
[1760074715433,0.4573,4351.9,4351.1,4.95007283]
[1760074715608,0.1144,4351.7,4351.6,2.29800533]
[1760074717105,0.002,4352.0,4351.9,2.29784691]
[1760074717300,0.002,4352.0,4351.9,7.2708982]
[1760074717530,0.002,4352.0,4351.9,7.24791974]
[1760074717732,0.002,4352.0,4351.9,8.67050697]
[1760074721915,0.002,4352.0,4351.1,0.96320728]
[1760074721916,0.4593,4352.0,4351.1,0.96320728]